fUST/lending_fUST_20241207
["ID","MTS","AMOUNT","RATE_DAILY","PERIOD"]
[344474292,1733509763397,-500.0,0.00025999,2]
[344474293,1733509763418,-500.0,0.00025999,2]
[344474294,1733509763440,-500.0,0.00025999,2]
[344474295,1733509763462,-500.0,0.00025999,2]
[344474296,1733509763484,-500.0,0.00025999,2]
[344474297,1733509763514,-500.0,0.00025999,2]
[344474298,1733509763537,-500.0,0.00025999,2]
[344474299,1733509763561,-500.0,0.00025999,2]
[344474300,1733509763583,-500.0,0.00025999,2]
[344474301,1733509763604,-500.0,0.00025999,2]
[344474302,1733509763630,-500.0,0.00025999,2]
[344474303,1733509763658,-500.0,0.00025999,2]
[344474304,1733509763683,-464.48686671,0.00025999,2]
[344474305,1733509763706,-21661.07650621,0.00026,10]
[344474306,1733509763728,-530.58264956,0.00026,2]
[344474307,1733509763750,-3430.88111034,0.00026,2]
[344474308,1733509763772,-9040.23818526,0.00026,30]
[344474309,1733509767089,-11257.02556088,0.00026,30]
[344474310,1733509767114,-597.77849005,0.00026821,2]
[344474311,1733509767139,-157.45494955,0.00026921,2]
[344474312,1733509767160,-46808.47518292,0.00027,2]
[344474313,1733509767183,-420.0,0.00027082,2]
[344474314,1733509767204,-597.77849001,0.00027363,2]
[344474315,1733509767225,-420.0,0.00027499,2]
[344474316,1733509767246,-2819.19500795,0.000275,30]
[344474317,1733509773618,220.12877861,0.000258,2]
[344474318,1733509792708,323.58552361,0.000258,2]
[344474482,1733509838180,-176.41447639,0.000258,2]
[344474484,1733509838190,-1000.0,0.00026348,2]
[344474486,1733509838200,-1500.0,0.0002735,2]
[344474488,1733509838211,-597.77849001,0.00027906,2]
[344474489,1733509838220,-300.0,0.00027999,2]
[344474491,1733509838229,-300.0,0.00027999,2]
[344474493,1733509838239,-13956.76683417,0.00028,7]
[344474495,1733509838249,-7015.625,0.00028,7]
[344474497,1733509838258,-178.37044499,0.00028015,18]
[344474499,1733509838269,-500.0,0.00028015,2]
[344474501,1733509838278,-500.0,0.00028015,2]
[344474503,1733509838288,-178.8591031,0.00028015,2]
[344474505,1733509838297,-16413.81957416,0.00028087,2]
[344474507,1733509838307,-14911.07432476,0.00028172,2]
[344474509,1733509838318,-1571.22699912,0.00028172,2]
[344474618,1733509840005,-2312.13563876,0.00028172,2]
[344474619,1733509840037,-6105.56303736,0.00028172,2]
[344474620,1733509840047,-169.058494,0.00028292,2]
[344474621,1733509840056,-597.77849001,0.00028448,2]
[344474622,1733509840066,-1000.0,0.00028647,5]
[344474623,1733509840076,-597.77849001,0.0002899,2]
[344474624,1733509840086,-53529.72263424,0.000291,2]
[344474625,1733509840095,-347.363,0.0002918,2]
[344474626,1733509840105,-597.77849001,0.00029532,2]
[344474627,1733509840114,-3059.95886515,0.0002975,2]
[344474628,1733509840123,-153.0,0.00029917,2]
[344474629,1733509840133,-153.0,0.00029917,2]
[344474630,1733509840142,-153.0,0.00029917,2]
[344474631,1733509840151,-500.0,0.00029999,2]
[344474632,1733509840160,-350.0,0.00029999,2]
[344474633,1733509840172,-200.0,0.00029999,2]
[344474634,1733509840181,-500.0,0.00029999,2]
[344474635,1733509840191,-500.0,0.00029999,2]
[344474637,1733509840200,-152.17522789,0.00029999,2]
[344474639,1733509840210,-470.28056075,0.00029999,2]
[344474641,1733509840220,-349.0,0.0003,2]
[344474642,1733509840230,-154.3,0.0003,31]
[344474644,1733509840239,-1642.90058398,0.0003,2]
[344474646,1733509840249,-20973.0570766,0.0003,3]
[344474648,1733509840259,-13792.60436043,0.0003,2]
[344474650,1733509840271,-8070.78718584,0.0003,2]
[344474692,1733509843267,-1264.29192549,0.0003,2]
[344474705,1733509846204,-4041.10048461,0.0003,2]
[344474706,1733509846255,-16311.12941596,0.0003,2]
[344474707,1733509846265,-7015.625,0.0003,3]
[344474708,1733509846275,-7015.625,0.0003,3]
[344474709,1733509846285,-666.0,0.00030036,2]
[344474710,1733509846294,-510.45022394,0.00030036,2]
[344474711,1733509846303,-597.77849001,0.00030075,2]
[344474712,1733509846312,-356.0,0.000301,14]
[344474713,1733509846321,-1000.0,0.000301,2]
[344474714,1733509846331,-500.0,0.00030135,3]
[344474715,1733509846340,-151.0,0.00030136,7]
[344474716,1733509846349,-151.0,0.00030136,7]
[344474717,1733509846358,-151.0,0.00030136,7]
[344474718,1733509846367,-151.0,0.00030136,7]
[344474719,1733509846377,-151.0,0.00030136,7]
[344474720,1733509846386,-151.0,0.00030136,7]
[344474721,1733509846395,-151.0,0.00030136,7]
[344474722,1733509846404,-151.0,0.00030136,7]
[344474723,1733509846414,-151.0,0.00030136,7]
[344474724,1733509846427,-226.392864,0.00030136,7]
[344474725,1733509846438,-500.0,0.00030136,7]
[344474726,1733509846447,-500.0,0.00030136,7]
[344474727,1733509846456,-500.0,0.00030136,7]
[344474728,1733509846466,-500.0,0.00030136,7]
[344474729,1733509846475,-500.0,0.00030136,7]
[344474730,1733509846484,-566.67424806,0.00030136,7]
[344474731,1733509846493,-500.0,0.00030136,7]
[344474732,1733509846503,-500.0,0.00030136,7]
[344474733,1733509846512,-500.0,0.00030136,7]
[344474734,1733509846521,-500.0,0.00030136,7]
[344474735,1733509846530,-500.0,0.00030136,7]
[344474736,1733509846539,-164.32,0.00030136,7]
[344474737,1733509846548,-500.0,0.00030136,7]
[344474738,1733509846558,-500.0,0.00030136,7]
[344474739,1733509846567,-500.0,0.00030136,7]
[344474740,1733509846576,-500.0,0.00030136,7]
[344474741,1733509846586,-408.24714831,0.00030136,7]
[344474742,1733509846598,-91.75285169,0.00030136,7]
[344474743,1733509846607,-500.0,0.00030136,7]
[344474744,1733509846616,-500.0,0.00030136,7]
[344474745,1733509846625,-500.0,0.00030136,7]
[344474746,1733509846635,-337.67376463,0.00030136,7]
[344474747,1733509846644,-500.0,0.00030136,7]
[344474748,1733509846655,-500.0,0.00030136,7]
[344474749,1733509846666,-500.0,0.00030136,7]
[344474750,1733509846678,-361.53408204,0.00030136,7]
[344474751,1733509846688,-253.96139626,0.00030136,7]
[344474752,1733509846698,-500.0,0.00030136,7]
[344474753,1733509846707,-500.0,0.00030136,7]
[344474754,1733509846716,-500.0,0.00030136,7]
[344474755,1733509846725,-413.70211455,0.00030136,7]
[344474756,1733509846737,-500.0,0.00030136,7]
[344474757,1733509846748,-500.0,0.00030136,7]
[344474758,1733509846757,-500.0,0.00030136,7]
[344474759,1733509846766,-500.0,0.00030136,7]
[344474760,1733509846776,-500.0,0.00030136,7]
[344474761,1733509846785,-256.04,0.00030136,7]
[344474762,1733509846795,-338.46,0.00030136,7]
[344474763,1733509846804,-500.0,0.00030136,7]
[344474764,1733509846814,-247.71382037,0.00030136,7]
[344474769,1733510227861,179.203449,0.00013973,2]
[344474770,1733510252899,1000.0,0.00026,60]
[344474774,1733510519787,-500.0,0.00029717,120]
[344474775,1733510519814,-527.0,0.00029717,120]
[344474777,1733510543949,-0.2,0.00029717,120]
[344474778,1733510543974,-151.0,0.0003,120]
[344474779,1733510543997,-1000.0,0.0003,120]
[344474780,1733510544021,-150.8,0.0003,120]
[344474983,1733510738153,-179.203449,0.00020447,2]
[344474984,1733510738174,-170.0,0.00022,2]
[344474985,1733510738195,-242.25264414,0.00025,2]
[344474986,1733510738216,-300.0,0.00025099,2]
[344474987,1733510738240,-300.0,0.00025099,2]
[344474988,1733510738261,-7015.625,0.000251,3]
[344474989,1733510738283,-7015.625,0.000251,3]
[344474990,1733510738303,-7015.625,0.000251,3]
[344474991,1733510738325,-242.25264413,0.00025454,2]
[344474992,1733510738344,-242.25264413,0.00025908,2]
[344474993,1733510738364,-261.574408,0.00026008,2]
[344474994,1733510738385,-187.705885,0.00026301,2]
[344474995,1733510738406,-250.0,0.00026705,2]
[344474996,1733510738427,-179.203449,0.00026921,2]
[344474997,1733510738447,-420.0,0.00027188,2]
[344474998,1733510738467,-420.0,0.00027609,2]
[344474999,1733510738487,-165.327916,0.00027653,2]
[344475000,1733510738508,-155.12144588,0.00028227,2]
[344475001,1733510738529,-187.705885,0.00028248,2]
[344475002,1733510738549,-24900.0,0.00028738,2]
[344475003,1733510738571,-196.60865103,0.00028897,2]
[344475004,1733510738590,-788.55415994,0.00028897,2]
[344475005,1733510738610,-302.37347405,0.00029,2]
[344475006,1733510738631,-405.299,0.0002918,2]
[344475007,1733510738651,-7572.12770142,0.00029248,2]
[344475008,1733510738672,-587.0,0.0002945,2]
[344475009,1733510738692,-7572.12770142,0.00029509,2]
[344475010,1733510738713,-153.0,0.00029635,2]
[344475011,1733510738734,-153.0,0.00029635,2]
[344475012,1733510738754,-153.0,0.00029635,2]
[344475013,1733510738911,-153.0,0.00029635,2]
[344475014,1733510738935,-153.0,0.00029737,2]
[344475015,1733510738957,-153.0,0.00029737,2]
[344475016,1733510738979,-153.0,0.00029737,2]
[344475017,1733510739000,-153.0,0.00029737,2]
[344475018,1733510739022,-153.0,0.00029737,2]
[344475019,1733510739043,-153.0,0.00029737,2]
[344475020,1733510739065,-153.0,0.00029737,2]
[344475021,1733510739087,-153.0,0.00029737,2]
[344475022,1733510739110,-153.0,0.00029737,2]
[344475023,1733510739131,-153.0,0.00029737,2]
[344475024,1733510739154,-153.0,0.00029737,2]
[344475025,1733510739175,-153.0,0.00029737,2]
[344475026,1733510739195,-153.0,0.00029737,2]
[344475027,1733510739215,-9940.0,0.0002975,7]
[344475028,1733510739236,-7572.12770142,0.00029814,2]
[344475029,1733510739256,-0.2,0.0003,120]
[344475030,1733510739276,-10122.896119,0.0003,2]
[344475031,1733510739300,-154.82,0.0003,31]
[344475032,1733510739322,-663.58529109,0.00030036,2]
[344475033,1733510739341,-338.0,0.000301,14]
[344475034,1733510739361,-1000.0,0.000301,2]
[344475035,1733510739381,-160.0,0.00030135,10]
[344475037,1733510739401,-500.0,0.00030135,3]
[344475038,1733510739421,-500.0,0.00030135,2]
[344475039,1733510739442,-500.0,0.00030135,2]
[344475040,1733510739462,-163.36450675,0.00030135,2]
[344475041,1733510739482,-500.0,0.00030135,2]
[344475042,1733510739501,-500.0,0.00030135,2]
[344475043,1733510739525,-500.0,0.00030135,2]
[344475044,1733510739550,-500.0,0.00030135,2]
[344475045,1733510739573,-500.0,0.00030135,2]
[344475046,1733510739594,-272.04549357,0.00030135,2]
[344475047,1733510739617,-500.0,0.00030135,2]
[344475048,1733510739639,-500.0,0.00030135,2]
[344475049,1733510739659,-500.0,0.00030135,2]
[344475050,1733510739681,-500.0,0.00030135,2]
[344475051,1733510739703,-500.0,0.00030135,2]
[344475052,1733510739723,-460.55939448,0.00030135,2]
[344475053,1733510739746,-500.0,0.00030135,2]
[344475054,1733510739772,-500.0,0.00030135,2]
[344475055,1733510739795,-500.0,0.00030135,2]
[344475056,1733510739820,-578.93709801,0.00030135,2]
[344475057,1733510739843,-500.0,0.00030135,2]
[344475058,1733510739865,-500.0,0.00030135,2]
[344475059,1733510739887,-500.0,0.00030135,2]
[344475060,1733510739909,-500.0,0.00030135,2]
[344475061,1733510739930,-500.0,0.00030135,2]
[344475062,1733510739955,-500.0,0.00030135,2]
[344475063,1733510739977,-500.0,0.00030135,2]
[344475064,1733510739999,-500.0,0.00030135,2]
[344475065,1733510740022,-500.0,0.00030135,2]
[344475066,1733510740044,-500.0,0.00030135,2]
[344475067,1733510740066,-500.0,0.00030135,2]
[344475068,1733510740089,-500.0,0.00030135,2]
[344475069,1733510740110,-500.0,0.00030135,2]
[344475070,1733510740132,-500.0,0.00030135,2]
[344475071,1733510740154,-500.0,0.00030135,2]
[344475072,1733510740176,-500.0,0.00030135,2]
[344475073,1733510740195,-181.66153152,0.00030136,10]
[344475074,1733510740215,-500.0,0.00030136,7]
[344475075,1733510740236,-224.84286475,0.00030136,7]
[344475076,1733510740257,-500.0,0.00030136,7]
[344475077,1733510740278,-500.0,0.00030136,7]
[344475078,1733510740298,-500.0,0.00030136,7]
[344475079,1733510740318,-500.0,0.00030136,7]
[344475080,1733510740340,-500.0,0.00030136,7]
[344475081,1733510740360,-222.44925463,0.00030136,7]
[344475082,1733510740383,-500.0,0.00030136,7]
[344475083,1733510740403,-514.11721485,0.00030136,7]
[344475084,1733510740423,-500.0,0.00030136,7]
[344475085,1733510740445,-334.26598832,0.00030136,7]
[344475086,1733510740466,-520.3042189,0.00030136,7]
[344475087,1733510740488,-500.0,0.00030136,7]
[344475088,1733510740508,-501.63195532,0.00030136,7]
[344475089,1733510740529,-500.0,0.00030136,7]
[344475090,1733510740550,-500.0,0.00030136,7]
[344475091,1733510740570,-500.0,0.00030136,7]
[344475092,1733510740595,-500.0,0.00030136,7]
[344475093,1733510740616,-500.0,0.00030136,7]
[344475094,1733510740636,-159.17697718,0.00030136,7]
[344475095,1733510740655,-500.0,0.00030136,7]
[344475096,1733510740675,-508.45192265,0.00030136,7]
[344475097,1733510740698,-500.0,0.00030136,7]
[344475098,1733510740723,-500.0,0.00030136,7]
[344475099,1733510740745,-500.0,0.00030136,7]
[344475100,1733510740765,-500.0,0.00030136,7]
[344475101,1733510740786,-500.0,0.00030136,7]
[344475102,1733510740806,-194.52244573,0.00030136,7]
[344475103,1733510740827,-500.0,0.00030136,7]
[344475104,1733510740847,-500.0,0.00030136,7]
[344475105,1733510740868,-500.0,0.00030136,120]
[344475106,1733510740888,-500.0,0.00030136,120]
[344475107,1733510740909,-317.651571,0.00030136,120]
[344475108,1733510740930,-500.0,0.00030136,7]
[344475109,1733510740953,-500.0,0.00030136,7]
[344475110,1733510740974,-500.0,0.00030136,7]
[344475111,1733510740996,-500.0,0.00030136,7]
[344475112,1733510741018,-500.0,0.00030136,7]
[344475113,1733510741039,-500.0,0.00030136,7]
[344475114,1733510741059,-500.0,0.00030136,7]
[344475115,1733510741081,-500.0,0.00030136,7]
[344475116,1733510741102,-500.0,0.00030136,7]
[344475117,1733510741122,-500.0,0.00030136,7]
[344475118,1733510741142,-500.0,0.00030136,7]
[344475119,1733510741162,-500.0,0.00030136,7]
[344475120,1733510741183,-500.0,0.00030136,7]
[344475121,1733510741202,-500.0,0.00030136,7]
[344475122,1733510741222,-500.0,0.00030136,7]
[344475123,1733510741242,-500.0,0.00030136,7]
[344475124,1733510741263,-500.0,0.00030136,7]
[344475125,1733510741283,-500.0,0.00030136,7]
[344475126,1733510741304,-558.1442848,0.00030136,7]
[344475127,1733510741326,-500.0,0.00030136,7]
[344475128,1733510741346,-557.59117084,0.00030136,7]
[344475129,1733510741366,-500.0,0.00030136,7]
[344475130,1733510741387,-575.36080994,0.00030136,7]
[344475131,1733510741407,-500.0,0.00030136,7]
[344475132,1733510741426,-494.19780686,0.00030136,7]
[344475133,1733510741446,-518.28,0.00030136,7]
[344475134,1733510741466,-500.0,0.00030136,7]
[344475135,1733510741486,-500.0,0.00030136,7]
[344475136,1733510741505,-500.0,0.00030136,7]
[344475137,1733510741525,-500.87769748,0.00030136,7]
[344475138,1733510741547,-500.0,0.00030136,7]
[344475139,1733510741568,-501.64258676,0.00030136,7]
[344475140,1733510741590,-500.0,0.00030136,7]
[344475141,1733510741612,-500.0,0.00030136,7]
[344475142,1733510741631,-500.0,0.00030136,7]
[344475143,1733510741652,-500.0,0.00030136,7]
[344475144,1733510741672,-500.0,0.00030136,7]
[344475145,1733510741692,-608.23643012,0.00030136,7]
[344475146,1733510741712,-500.0,0.00030136,7]
[344475147,1733510741732,-500.0,0.00030136,7]
[344475148,1733510741752,-500.0,0.00030136,7]
[344475149,1733510741772,-500.0,0.00030136,7]
[344475150,1733510741792,-500.0,0.00030136,7]
[344475151,1733510741812,-500.0,0.00030136,7]
[344475152,1733510741838,-500.0,0.00030136,7]
[344475153,1733510741859,-500.0,0.00030136,7]
[344475154,1733510741880,-500.0,0.00030136,7]
[344475155,1733510741901,-500.0,0.00030136,7]
[344475156,1733510741922,-500.0,0.00030136,7]
[344475157,1733510741945,-500.0,0.00030136,7]
[344475158,1733510741967,-500.0,0.00030136,7]
[344475159,1733510741987,-592.6016211,0.00030136,7]
[344475160,1733510742008,-500.0,0.00030136,7]
[344475161,1733510742031,-500.0,0.00030136,7]
[344475162,1733510742051,-500.0,0.00030136,7]
[344475163,1733510742072,-507.11146789,0.00030136,7]
[344475164,1733510742094,-500.0,0.00030136,7]
[344475165,1733510742114,-500.0,0.00030136,7]
[344475166,1733510742134,-500.0,0.00030136,7]
[344475167,1733510742260,-500.0,0.00030136,7]
[344475168,1733510742281,-500.0,0.00030136,7]
[344475169,1733510742302,-500.0,0.00030136,7]
[344475170,1733510742322,-500.0,0.00030136,7]
[344475171,1733510742345,-500.0,0.00030136,7]
[344475172,1733510742366,-500.0,0.00030136,7]
[344475173,1733510742386,-500.0,0.00030136,7]
[344475174,1733510742406,-500.0,0.00030136,7]
[344475175,1733510742426,-500.0,0.00030136,7]
[344475176,1733510742446,-500.0,0.00030136,7]
[344475177,1733510742467,-579.20444142,0.00030136,7]
[344475178,1733510742487,-500.0,0.00030136,7]
[344475179,1733510742507,-500.0,0.00030136,7]
[344475180,1733510742528,-500.0,0.00030136,7]
[344475181,1733510742548,-500.0,0.00030136,7]
[344475182,1733510742568,-500.0,0.00030136,7]
[344475183,1733510742589,-500.0,0.00030136,7]
[344475184,1733510742610,-507.40809523,0.00030136,7]
[344475185,1733510742630,-500.0,0.00030136,7]
[344475186,1733510742649,-500.0,0.00030136,7]
[344475187,1733510742669,-500.0,0.00030136,7]
[344475188,1733510742689,-500.0,0.00030136,7]
[344475189,1733510742709,-500.0,0.00030136,7]
[344475190,1733510742729,-502.71407691,0.00030136,7]
[344475191,1733510742750,-500.0,0.00030136,7]
[344475192,1733510742772,-168.0,0.00030136,7]
[344475193,1733510742793,-170.27128831,0.00030136,7]
[344475194,1733510742814,-500.0,0.00030136,7]
[344475195,1733510742837,-500.0,0.00030136,7]
[344475196,1733510742857,-500.0,0.00030136,7]
[344475197,1733510742877,-393.64701979,0.00030136,7]
[344475198,1733510742898,-500.0,0.00030136,7]
[344475199,1733510742918,-500.0,0.00030136,7]
[344475200,1733510742954,-502.14769295,0.00030136,7]
[344475201,1733510742979,-500.0,0.00030136,7]
[344475202,1733510743002,-504.27338819,0.00030136,7]
[344475203,1733510743026,-500.0,0.00030136,7]
[344475204,1733510743054,-500.0,0.00030136,7]
[344475205,1733510743076,-500.0,0.00030136,7]
[344475206,1733510743097,-500.0,0.00030136,7]
[344475207,1733510743120,-500.0,0.00030136,7]
[344475208,1733510743141,-500.0,0.00030136,7]
[344475209,1733510743162,-325.30997326,0.00030136,7]
[344475210,1733510810360,-980.448734,0.00030137,120]
[344475211,1733510810412,-1452.60128146,0.00030137,120]
[344475212,1733510810473,-1319.59996908,0.00030137,120]
[344475213,1733510824367,313.8070212,0.00025,10]
[344475214,1733510833100,-300.0,0.00025099,2]
[344475215,1733510833123,-300.0,0.00025099,2]
[344475216,1733510833152,-967.31607396,0.000251,3]
[344475217,1733510841151,-2173.97143981,0.000251,3]
[344475221,1733510885272,151.0,0.00030136,120]
[344475224,1733510951086,-300.0,0.00024999,2]
[344475225,1733510951109,-300.0,0.00024999,2]
[344475226,1733510951133,-59362.16244778,0.00025,2]
[344475227,1733510951156,-3874.33748623,0.000251,3]
[344475228,1733510951179,-7015.625,0.000251,3]
[344475229,1733510951201,-315.89306793,0.000251,3]
[344475230,1733510957454,-6699.73193207,0.000251,3]
[344475231,1733510957477,-420.0,0.00027082,2]
[344475233,1733510995885,167.227633,0.00013973,2]
[344475234,1733510996218,167.227633,0.00020447,2]
[344475235,1733510996544,167.227633,0.00026921,2]
[344475260,1733511032503,-187.705885,0.00027588,2]
[344475262,1733511032513,-160.0,0.00027609,3]
[344475264,1733511032523,-161.47593538,0.00027896,2]
[344475268,1733511032600,-475.56361792,0.00027896,2]
[344475270,1733511032610,-500.0,0.00028171,3]
[344475272,1733511032619,-169.058494,0.00028225,2]
[344475274,1733511032629,-160.0,0.00028771,4]
[344475275,1733511032638,-70.3535491,0.00029541,5]
[344475286,1733511032738,-429.6464509,0.00029541,5]
[344475288,1733511032748,-69.36811337,0.00029594,2]
[344475431,1733511039046,-83.63188663,0.00029594,2]
[344475432,1733511039055,-153.0,0.00029594,2]
[344475433,1733511039066,-4.92049557,0.00029594,2]
[344475434,1733511039077,-148.07950443,0.00029594,2]
[344475435,1733511039087,-160.0,0.00029933,5]
[344475436,1733511039097,-300.0,0.00029999,2]
[344475437,1733511039106,-1688.84579059,0.0003,2]
[344475438,1733511039118,-2311.15420941,0.0003,2]
[344475439,1733511039127,-530.86823288,0.00030036,2]
[344475440,1733511039137,-174.69002674,0.00030136,7]
[344475441,1733511039147,-500.0,0.00030136,7]
[344475442,1733511039156,-500.0,0.00030136,7]
[344475443,1733511039165,-500.0,0.00030136,7]
[344475444,1733511039175,-500.0,0.00030136,7]
[344475445,1733511039184,-501.11149015,0.00030136,7]
[344475446,1733511039194,-500.0,0.00030136,7]
[344475447,1733511039203,-500.0,0.00030136,7]
[344475448,1733511039212,-500.0,0.00030136,7]
[344475449,1733511039221,-500.0,0.00030136,7]
[344475450,1733511039230,-500.0,0.00030136,7]
[344475451,1733511039239,-500.0,0.00030136,7]
[344475452,1733511039248,-500.0,0.00030136,7]
[344475453,1733511039257,-500.0,0.00030136,7]
[344475454,1733511039266,-500.0,0.00030136,7]
[344475455,1733511039275,-500.0,0.00030136,7]
[344475456,1733511039285,-500.0,0.00030136,7]
[344475457,1733511039294,-500.0,0.00030136,7]
[344475458,1733511039304,-600.96074914,0.00030136,7]
[344475459,1733511039315,-500.0,0.00030136,7]
[344475460,1733511039324,-500.0,0.00030136,7]
[344475461,1733511039333,-500.0,0.00030136,7]
[344475462,1733511039342,-500.0,0.00030136,7]
[344475463,1733511039352,-500.0,0.00030136,7]
[344475464,1733511039361,-500.0,0.00030136,7]
[344475465,1733511039370,-500.0,0.00030136,7]
[344475466,1733511039379,-500.0,0.00030136,7]
[344475467,1733511039388,-500.0,0.00030136,7]
[344475468,1733511039397,-500.0,0.00030136,7]
[344475469,1733511039406,-500.0,0.00030136,7]
[344475470,1733511039415,-500.0,0.00030136,7]
[344475471,1733511039424,-500.0,0.00030136,7]
[344475472,1733511039433,-500.0,0.00030136,7]
[344475473,1733511039443,-500.0,0.00030136,7]
[344475474,1733511039452,-500.0,0.00030136,7]
[344475475,1733511039462,-500.0,0.00030136,7]
[344475476,1733511039471,-500.0,0.00030136,7]
[344475477,1733511039481,-500.0,0.00030136,7]
[344475478,1733511039490,-500.0,0.00030136,7]
[344475479,1733511039499,-500.0,0.00030136,7]
[344475480,1733511039508,-500.0,0.00030136,7]
[344475481,1733511039519,-500.0,0.00030136,7]
[344475482,1733511039528,-500.0,0.00030136,7]
[344475483,1733511039537,-500.0,0.00030136,7]
[344475484,1733511039547,-500.0,0.00030136,7]
[344475485,1733511039557,-500.0,0.00030136,7]
[344475486,1733511039569,-500.0,0.00030136,7]
[344475487,1733511039578,-500.0,0.00030136,7]
[344475488,1733511039586,-500.0,0.00030136,7]
[344475489,1733511039595,-500.0,0.00030136,7]
[344475490,1733511039605,-500.0,0.00030136,7]
[344475491,1733511039614,-500.0,0.00030136,7]
[344475492,1733511039624,-500.0,0.00030136,7]
[344475493,1733511039633,-500.0,0.00030136,7]
[344475494,1733511039642,-500.0,0.00030136,7]
[344475495,1733511039651,-594.13432972,0.00030136,7]
[344475496,1733511039660,-500.0,0.00030136,7]
[344475497,1733511039669,-500.0,0.00030136,7]
[344475498,1733511039679,-500.0,0.00030136,7]
[344475499,1733511039688,-500.0,0.00030136,7]
[344475500,1733511039698,-504.13041638,0.00030136,7]
[344475501,1733511039707,-500.0,0.00030136,2]
[344475502,1733511039716,-500.0,0.00030136,2]
[344475503,1733511039726,-500.0,0.00030136,2]
[344475504,1733511039735,-500.0,0.00030136,7]
[344475505,1733511039745,-500.0,0.00030136,7]
[344475506,1733511039755,-500.0,0.00030136,7]
[344475507,1733511039764,-500.0,0.00030136,7]
[344475508,1733511039773,-500.0,0.00030136,7]
[344475509,1733511039783,-500.0,0.00030136,7]
[344475510,1733511039792,-500.0,0.00030136,7]
[344475511,1733511039801,-500.0,0.00030136,7]
[344475512,1733511039814,-500.0,0.00030136,7]
[344475513,1733511039823,-500.0,0.00030136,7]
[344475514,1733511039833,-468.79840917,0.00030136,7]
[344475515,1733511039842,-500.0,0.00030136,7]
[344475516,1733511039851,-500.0,0.00030136,7]
[344475517,1733511039861,-500.0,0.00030136,7]
[344475518,1733511039870,-500.0,0.00030136,7]
[344475519,1733511039879,-500.0,0.00030136,7]
[344475520,1733511039889,-174.13987534,0.00030136,7]
[344475521,1733511039898,-500.0,0.00030136,7]
[344475522,1733511039907,-500.0,0.00030136,7]
[344475523,1733511039916,-500.0,0.00030136,7]
[344475524,1733511039926,-500.0,0.00030136,7]
[344475526,1733511040040,-500.0,0.00030136,7]
[344475527,1733511040054,-500.0,0.00030136,7]
[344475528,1733511040068,-500.0,0.00030136,7]
[344475529,1733511040079,-500.0,0.00030136,7]
[344475530,1733511040089,-500.0,0.00030136,7]
[344475531,1733511040098,-500.0,0.00030136,7]
[344475532,1733511040108,-502.15695178,0.00030136,7]
[344475533,1733511040118,-501.84103313,0.00030136,7]
[344475534,1733511040128,-500.0,0.00030136,7]
[344475535,1733511040137,-430.75737441,0.00030136,7]
[344475536,1733511040148,-339.94351179,0.00030136,7]
[344475543,1733511042062,-160.05648821,0.00030136,7]
[344475544,1733511042072,-500.0,0.00030136,7]